Cogmind - Beta 12 @@@ ROGUE MODE // 2023.06.25 @ 17:50:00 Player: ILikeMonsters1890 Result: Core destroyed Performance ------------- Evolutions (0) 0 Regions Visited (1) 200 Robots Destroyed (18) 90 Value Destroyed (332) 332 Prototype IDs (2) 40 Alien Tech Used (0) 0 Bonus (0) 0 TOTAL SCORE: 662 Bonus ------- None Cogmind --------- Core Integrity 0/250 Matter 283/300 Energy 250/250 System Corruption 1% Temperature Critical (572) Movement Rolling (95) Ox1 Location -10/Materials Parts ------- > --- POWER (1) -------- Ion Engine > --- PROPULSION (2) --- Wheel Wheel > --- UTILITY (2) ------ Small Storage Unit Seismic Detector > --- WEAPON (2) ------- Spread Laser Spread Laser > --- INVENTORY (8) ---- Light Ion Engine Wheel Wheel Large Storage Unit Sensor Array Seismic Detector Light Armor Plating Light Assault Rifle Peak State ------------ > --- POWER ------------ Ion Engine > --- PROPULSION ------- Wheel Wheel > --- UTILITY ---------- Small Storage Unit Seismic Detector > --- WEAPON ----------- Spread Laser Spread Laser > --- INVENTORY -------- Light Ion Engine Wheel Wheel Large Storage Unit Sensor Array Seismic Detector Light Armor Plating Light Assault Rifle [Rating: 9] Favorites ----------- Power Ion Engine Engine Ion Engine Propulsion Wheel Leg Aluminum Leg Wheel Wheel Utility Small Storage Unit Device Seismic Detector Storage Small Storage Unit Weapon Spread Laser Energy Gun Spread Laser Ballistic Gun Light Assault Rifle Build | -11 -10 ------- Run | Jun Mat Slots Evolved . | . . Power . | . . Propulsion . | . . Utility . | . . Weapon . | . . Parts Attached 9 | 6 3 Power . | . . Engine . | . . Core . | . . Reactor . | . . Propulsion 4 | 4 . Treads . | . . Leg . | . . Wheel 4 | 4 . Hover . | . . Flight . | . . Utility 1 | 1 . Device 1 | 1 . Storage . | . . Processor . | . . Hackware . | . . Protection . | . . Artifact . | . . Weapon 4 | 1 3 Energy Gun 3 | 1 2 Energy Cannon . | . . Ballistic Gun 1 | . 1 Ballistic Cannon . | . . Launcher . | . . Special Weapon . | . . Impact Weapon . | . . Slashing Weapon . | . . Piercing Weapon . | . . Special Melee Weapon . | . . Unidentified Prototypes . | . . Parts Lost . | . . Power . | . . Propulsion . | . . Utility . | . . Weapon . | . . Highest Loss Streak . | . . To Critical Strikes . | . . Average Slot Usage (%) 100 | . 100 Engine 14 | . 14 Wheel 28 | . 28 Device 14 | . 14 Storage 14 | . 14 Energy Gun 19 | . 19 Ballistic Gun 8 | . 8 Naked Turns . | . . Heaviest Build 17 | 14 17 Greatest Support 32 | 32 20 Greatest Overweight (x) 1 | . 1 Average Overweight (x) . | . . Largest Inventory Capacity 8 | 8 8 Average Capacity 8 | 8 8 Most Carried 8 | 7 8 Average Carried 7 | 4 7 Final Capacity 8 | 8 8 Final Carried 8 | 6 8 Class Distribution -------------------- 62% | Mutant 37% | Scavenger-Mutant Dominant Class ---------------- Mutant | -10/Materials Resources | -11 -10 ----------- Run | Jun Mat Matter Collected 442 | 277 165 Remotely . | . . Salvage Created 532 | 203 329 Parts 28 | 14 14 Haulers Intercepted 1 | . 1 Recyclers Shooed 1 | 1 . Parts Field Recycled . | . . Retrieved Matter . | . . Parts Self-Destructed . | . . Prevented . | . . Kills | -11 -10 ------- Run | Jun Mat Combat Hostiles Destroyed 10 | . 10 Guns 10 | . 10 Classes Destroyed 6 | 3 3 Worker 2 | 2 . Tunneler 4 | 4 . Hauler 1 | . 1 Recycler 1 | 1 . Swarmer 3 | . 3 Grunt 7 | . 7 Best Kill Streak 4 | 4 4 Combat Bots Only 4 | . 4 Max Kills in Single Turn 1 | 1 1 Gunslinging . | . . Exploded . | . . Melee . | . . Uniques/NPCs Destroyed . | . . Combat | -11 -10 -------- Run | Jun Mat Damage Taken 586 | . 586 Core 292 | . 292 Absorbed by Shields . | . . Core Remaining (%) 100 | 100 . Volleys Fired 60 | 17 43 Largest 2 | 2 2 Hottest 130 | 70 130 Shots Fired 111 | 34 77 Gun 111 | 34 77 Cannon . | . . Launcher . | . . Special . | . . Kinetic 43 | 17 26 Thermal 68 | 17 51 Explosive . | . . Electromagnetic . | . . Robot Hit Streak 9 | 7 9 Robot Miss Streak 4 | 2 4 Penetration Max . | . . Secondary Targets 2 | . 2 Max Gunslinging Chain 1 | . 1 Shots Hit Robots 80 | 23 57 Core Hits 46 | 10 36 Critical Kills . | . . Critical Parts Destroyed 1 | 1 . Critical Strikes 5 | 4 1 Burn 4 | 3 1 Destroy 1 | 1 . Melee Attacks . | . . Impact . | . . Slashing . | . . Piercing . | . . Sneak Attacks . | . . Combat Hostiles . | . . Follow-up Attacks . | . . Damage Inflicted 966 | 269 697 Guns 966 | 269 697 Cannons . | . . Explosions . | . . Melee . | . . Ramming . | . . Kinetic 191 | 96 95 Thermal 775 | 173 602 Explosive . | . . Electromagnetic . | . . Impact . | . . Slashing . | . . Piercing . | . . Highest Corruption 1 | . 1 Average Corruption 1 | . 1 Corruption Purged . | . . Corruption Blocked . | . . Effects 2 | . 2 Message Errors 1 | . 1 Energy Discharges 1 | . 1 Overload Shots . | . . Overflow Damage . | . . Projectiles . | . . Explosions . | . . Melee . | . . Knockbacks . | . . Impact . | . . Kinetic . | . . Secondary . | . . Self-Inflicted Damage . | . . Shots . | . . Rammed . | . . Targets Rammed . | . . Kicked . | . . Crushed . | . . Highest Temperature 737 | 100 737 Average Temperature 142 | 41 181 Received Heat Transfer 180 | . 180 Effects 21 | . 21 Shutdowns 2 | . 2 Interference 5 | . 5 Matter Decay 2 | . 2 Short Circuit 1 | . 1 Damage (minor) 3 | . 3 Damage (major) 3 | . 3 Damage (core) 5 | . 5 Siege Activations . | . . Robots Corrupted . | . . Combat Hostiles . | . . Parts Fried . | . . Impact Corruptions . | . . Robots Melted . | . . Combat Hostiles . | . . Parts Melted 4 | 1 3 Heat Transferred 1984 | 740 1244 Parts Sabotaged . | . . Parts Stolen . | . . Parts Stripped . | . . Power Chain Reactions . | . . Missiles Intercepted . | . . Alert | -11 -10 ------- Run | Jun Mat Peak Influence 271 | 35 271 Initial 22 | . 22 Average 120 | 15 144 Maximum Alert Level 1 | . 1 Low Security (%) 74 | 100 68 Level 1 25 | . 31 Level 2 . | . . Level 3 . | . . Level 4 . | . . Level 5 . | . . High Security . | . . Max Security . | . . Squads Dispatched 1 | . 1 Investigation . | . . Extermination . | . . Reinforcement 1 | . 1 Assault . | . . Garrison . | . . Intercept . | . . Searches Triggered . | . . Construction Impeded . | . . Haulers Reinforced . | . . Active Scanning Responses . | . . Cargo Convoy Interrupts . | . . Stealth | -11 -10 --------- Run | Jun Mat Distress Signals 2 | . 2 Communications Jammed . | . . Distress Signals . | . . Times Spotted 22 | . 22 Peak Tracking Total 6 | . 6 Tactical Retreats 1 | . 1 Traps | -11 -10 ------- Run | Jun Mat Traps Triggered 1 | . 1 Indirectly . | . . Trap Hack Attempts . | . . Triggered . | . . Disarmed . | . . Reprogrammed . | . . Reused . | . . Traps Extracted . | . . Installed . | . . Triggered . | . . Machines | -11 -10 ---------- Run | Jun Mat Machines Disabled . | . . Max in Single Turn . | . . Machines Repaired . | . . Machines Sabotaged . | . . Overloaded Fab Kills . | . . Hacking | -11 -10 --------- Run | Jun Mat Machines Accessed 6 | . 6 Terminals 5 | . 5 Fabricators . | . . Repair Stations . | . . Recycling Units 1 | . 1 Scanalyzers . | . . Garrison Access . | . . Total Hacks 21 | . 21 Successful 11 | . 11 Failed 10 | . 10 Catastrophic 1 | . 1 Database Lockouts . | . . Manual 11 | . 11 Terminals 17 | . 17 Fabricators . | . . Repair Stations . | . . Recycling Units 4 | . 4 Scanalyzers . | . . Garrison Access . | . . Terminal Hacks 8 | . 8 Robot Analysis 2 | . 2 Prototype ID Bank 1 | . 1 Locate Traps 3 | . 3 Zone Layout 2 | . 2 Fabricator Hacks . | . . Repair Station Hacks . | . . Recycling Unit Hacks 1 | . 1 Retrieve Components 1 | . 1 Scanalyzer . | . . Garrison Access Hacks . | . . Unauthorized Hacks 2 | . 2 Terminals 1 | . 1 Botnet 1 | . 1 Fabricators . | . . Repair Stations . | . . Recycling Units 1 | . 1 Reject 1 | . 1 Scanalyzers . | . . Garrison Access . | . . Data Cores Recovered . | . . Used . | . . Hacking Detections 6 | . 6 Full Trace Events . | . . Feedback Events . | . . Feedback Blocked . | . . Robot Schematics Acquired . | . . Robots Built . | . . Authchips . | . . Time . | . . Total Robot Build Rating . | . . Part Schematics Acquired . | . . Parts Built . | . . Authchips . | . . Time . | . . Total Part Build Rating . | . . Parts Repaired . | . . Time . | . . Parts Recycled . | . . Recycled Matter . | . . Retrieved Matter . | . . Retrieved Components 10 | . 10 Parts Scanalyzed . | . . Part Schematics Acquired . | . . Parts Damaged . | . . Bothacking | -11 -10 ------------ Run | Jun Mat Used RIF Installer . | . . Robots Hacked . | . . Non-combat . | . . Combat . | . . Robot Hacks Applied . | . . Relay Couplers Released . | . . Fabnet Peak Effective % . | . . Robots Rewired . | . . Allies Hacked . | . . Hacks Repelled . | . . Allies | -11 -10 -------- Run | Jun Mat Total Allies . | . . Largest Group . | . . Highest-Rated Group . | . . Highest-Rated Ally . | . . Total Orders . | . . Ally Attacks . | . . Total Damage . | . . Kills . | . . Allies Corrupted . | . . Allies Melted . | . . Intel | -11 -10 ------- Run | Jun Mat Robot Analysis Total 2 | . 2 Derelict Logs Recovered . | . . Drone Launches . | . . Drone Recoveries . | . . Exploration | -11 -10 ------------- Run | Jun Mat Turns Passed 666 | 123 543 Spaces Moved 451 | 50 401 Core . | . . Treads . | . . Legs . | . . Wheels 451 | 50 401 Hover . | . . Flight . | . . Fastest Speed 80 | 80 80 Average Speed 80 | 87 80 Slowest Speed 100 | 100 95 Overloaded Moves . | . . Propulsion Burnouts . | . . Robots Hopped . | . . Cave-ins Triggered . | . . Exploration Rate (%) 34 | 3 65 Regions Visited 1 Branch Regions . Pre-discovered Areas . | . . Known Exits Taken . | . . Unknown Exits Taken 1 | 1 . Scrap Searched . | . . Spaces Dug . | . . Terrain Destroyed . | . . Melee . | . . Projectile . | . . AOE . | . . Terrain Rammed . | . . Walls Destroyed . | . . Machines Disabled . | . . Actions | -11 -10 --------- Run | Jun Mat Total 655 | 99 556 Wait 109 | 12 97 Move 450 | 49 401 Hop . | . . Pick Up 13 | 7 6 Fast Attach 1 | 1 . Attach . | . . Detach . | . . Swap 8 | 5 3 Drop 14 | 8 6 Fire 60 | 17 43 Melee . | . . Ram . | . . Kick . | . . Crush . | . . Escape Stasis . | . . Rewire . | . . Trap . | . . Miscellaneous . | . . Route ------- -11/Junkyard -10/Materials (discovered 2 exits: [*Mat] / [*Min]) History --------- Turn | Location | Event 14 | -11/Junkyard | Discovered new exit (range 3) 124 | -11/Junkyard | Entered Materials 477 | -10/Materials | Discovered new exit (range 14) 525 | -10/Materials | Discovered new exit (range 8) 648 | -10/Materials | Core integrity fell below 50% 651 | -10/Materials | Core integrity fell below 20% 668 | -10/Materials | Core destroyed Last Messages --------------- 00654_ Overheating: System interference. 00654_ Seismic Detector temporarily disabled. 00654_ Spread Laser temporarily disabled. 00654_ Seismic Detector temporarily disabled. 00656_ Overheating: Matter decay (-69). 00656_ Acquired 30 matter. 00659_ Power failure, Ion Engine shutdown. 00659_ Overheating: Matter decay (-57). 00659_ G-34 Mercenary destroyed. 00660_ Wheel broken. 00660_ Overheating: Short circuit. 00660_ Acquired 29 matter. 00661_ Acquired 19 matter. 00662_ Overheating: Wheel damaged (-14). 00663_ Overheating: Spread Laser damaged (-9). 00663_ Overheating: Seismic Detector damaged (-7). 00663_ Overheating: Ion Engine damaged (-7). 00663_ Acquired 31 matter. 00665_ Overheating: Core damaged (-35). 00668_ Overheating: Core damaged (-47). Map ----- +----------------------------------------------------+ | ???????????????????????######## ##!!!** | | ?????????????????????????????# ###+##### | | ?????????????????????????????# #? | | ?????????????????????????????# #? | | ?????????????????????????????# ^^^ ^#? | | ?????????????????????????????# ####^ ^#? | | ?????????????????????????????#######??# #? | | ??????????????????????????????????????# #? | | ??????????????????????????????????????# ## | | ??????????????????? ??????????????# # | | ??????????????????? ??????????????# # | | ??????????????????? ??????????????# # | | ??????????????????? ??????????????# % # | | ???????????????????# #???????######## # | | ???????????????????# #???????# # # | | ???????????????????+ ######??# + ## | | ???????????????????# ## #??# # | | ???????????????????# ## " #??# [# | | ???????????????????# ## T #### | #!! | | ???????????????????# ## " + + #!! | | ?????????########### ## ######+####! | | ?????????# ## ##= !#?????????# | | ?????????# ## ## #?????????# | | ?????????# # ##+####### #### | | ?????????# """ #* ok | | ?????????# """" /@=T t ########## | | ?????????# """""[#= #????########## | | ?????????# """"" # ### #????# | | ?????????# """ #^#####?? ??# """ "" | | ?????????# #^#??????!!!![[## """ "" | | ?????????########## #??????!!!![[## """ "" | | ??????????????????# #??????######## | | ??????????????????# #?????????????# | | ??????????????????# #?????????????# | | ??????????????????# ??????????????#######+## | | ??????????????????# ??????????????????# | | ??????????????????# ??????????????????# | | ??????????????????? ??????????????????# | | ??????????????????? ??????????????????# | | ??????????????????? ??????????????????# | | ??????????????????? ??????????????????## # | | ???????????????????????????????????????# # | | ???????????????????????????????????????# # | | ????????????????????????????????######## # | | ????????????????????????????????# ## # | | ????????????????????????????????# # | | ????????????????????????????????# # | | ????????????????????????????????# | | ????????????????????????????????# ###### | | ?????????????????????????######### ##????? | +----------------------------------------------------+ Best States ------------- Heat Dissipation 25 Energy Generation 10 Energy Capacity 250 Matter Stores 300 Matter Capacity 300 Sight Range 16 Terrain Scan Density 10 Evasion (%) 44 Item Schematics ----------------- None Robot Schematics ------------------ None Fabricated ------------ Nothing Alien Tech Used ----------------- None Achievements -------------- None Challenges ------------ None Game ------ Seed SwarmHeavyShearcannon Manual? 0 Play Time 00:08:51 Cumulative 183.8 hours Start 2023.06.25 @ 17:41:04 End 2023.06.25 @ 17:50:00 Sessions 1 Manual Loads 0 Difficulty Rogue Special Mode None Game No. 160 Rogue 160 Adventurer 0 Explorer 0 Win Type - Total 8 Types 5/0/2/1/0/0/0/0/0 Lore% 79 Gallery% 67 Achievement% 58 Wizard Run 0 Options --------- ASCII 0 Keyboard 0 Movement Numpad Keybinds 0 Fullscreen 2 Font 18/Smallcaps Map View 76x50 Tactical HUD 1 Map Filters NONE Filters NONE Steam 1 RUN: fd20cd01-5254-41d0-918d-30e1a2b1b97e